[Event "Late-Titled-Tuesday-Blitz-July-09-2024"]
[Site "Chess.com"]
[Date "2024.07.09"]
[Round "9"]
[White "Chessmatus"]
[Black "Statham_01"]
[Result "1-0"]
[WhiteElo "2536"]
[BlackElo "2658"]
[TimeControl "180+1"]
[EndTime "15:45:35 PDT"]
[Termination "Chessmatus won by checkmate"]

1. e4 {[%clk 0:03:00.9]} 1... e5 {[%clk 0:02:58.1]} 2. Nf3 {[%clk 0:02:59]} 2...
Nc6 {[%clk 0:02:58.7]} 3. Bb5 {[%clk 0:02:59.2]} 3... a6 {[%clk 0:02:55.4]} 4.
Ba4 {[%clk 0:02:58.8]} 4... f5 {[%clk 0:02:55.8]} 5. d3 {[%clk 0:02:57.5]} 5...
Nf6 {[%clk 0:02:54.6]} 6. Bg5 {[%clk 0:02:51.6]} 6... fxe4 {[%clk 0:02:54.6]} 7.
dxe4 {[%clk 0:02:51.5]} 7... Bb4+ {[%clk 0:02:52.7]} 8. Nbd2 {[%clk 0:02:43.8]}
8... O-O {[%clk 0:02:49.6]} 9. c3 {[%clk 0:02:39.9]} 9... Bc5 {[%clk 0:02:48.8]}
10. O-O {[%clk 0:02:35.8]} 10... d6 {[%clk 0:02:48.3]} 11. Qe2 {[%clk
0:02:18.1]} 11... Kh8 {[%clk 0:02:44.7]} 12. Rad1 {[%clk 0:02:09]} 12... Qe8
{[%clk 0:02:44.7]} 13. Kh1 {[%clk 0:01:22.8]} 13... Qg6 {[%clk 0:02:39.2]} 14.
Be3 {[%clk 0:01:22.3]} 14... Bxe3 {[%clk 0:02:33.6]} 15. Qxe3 {[%clk 0:01:22.6]}
15... b5 {[%clk 0:02:27.7]} 16. Bb3 {[%clk 0:01:17.2]} 16... Nd8 {[%clk
0:02:27.5]} 17. Rde1 {[%clk 0:01:16.2]} 17... Ne6 {[%clk 0:02:23.7]} 18. g3
{[%clk 0:01:16.6]} 18... Ng4 {[%clk 0:02:22.3]} 19. Qe2 {[%clk 0:01:14.2]} 19...
Nc5 {[%clk 0:02:19.3]} 20. Bc2 {[%clk 0:00:59.4]} 20... Bb7 {[%clk 0:02:13.9]}
21. Nh4 {[%clk 0:00:37.1]} 21... Qe6 {[%clk 0:01:38.2]} 22. b4 {[%clk
0:00:18.9]} 22... Na4 {[%clk 0:01:22.8]} 23. Bxa4 {[%clk 0:00:18.5]} 23... bxa4
{[%clk 0:01:23.7]} 24. f3 {[%clk 0:00:18.9]} 24... Nf6 {[%clk 0:01:22.8]} 25. c4
{[%clk 0:00:19.5]} 25... c6 {[%clk 0:01:15.7]} 26. Ng2 {[%clk 0:00:18.1]} 26...
d5 {[%clk 0:01:15.4]} 27. Ne3 {[%clk 0:00:18]} 27... dxe4 {[%clk 0:01:12.3]} 28.
Nxe4 {[%clk 0:00:16]} 28... Nxe4 {[%clk 0:00:59.8]} 29. fxe4 {[%clk 0:00:16.9]}
29... c5 {[%clk 0:00:58.6]} 30. Nd5 {[%clk 0:00:17.4]} 30... cxb4 {[%clk
0:00:57.6]} 31. Nc7 {[%clk 0:00:17.6]} 31... Qg6 {[%clk 0:00:26.5]} 32. Nxa8
{[%clk 0:00:16.8]} 32... Rxa8 {[%clk 0:00:27.4]} 33. Kg1 {[%clk 0:00:15.6]}
33... h6 {[%clk 0:00:24.8]} 34. Rf5 {[%clk 0:00:15]} 34... b3 {[%clk 0:00:19.1]}
35. axb3 {[%clk 0:00:13.9]} 35... axb3 {[%clk 0:00:20]} 36. Rb1 {[%clk 0:00:12]}
36... Qb6+ {[%clk 0:00:12.7]} 37. Qf2 {[%clk 0:00:12.2]} 37... Qd6 {[%clk
0:00:11.8]} 38. Qe3 {[%clk 0:00:10.7]} 38... Rc8 {[%clk 0:00:07.5]} 39. Rxb3
{[%clk 0:00:07.7]} 39... Bc6 {[%clk 0:00:05.3]} 40. Rd3 {[%clk 0:00:07.4]} 40...
Qb4 {[%clk 0:00:04.5]} 41. Qf3 {[%clk 0:00:06.2]} 41... a5 {[%clk 0:00:03.9]}
42. Re3 {[%clk 0:00:02.9]} 42... a4 {[%clk 0:00:03.7]} 43. Kg2 {[%clk
0:00:03.6]} 43... a3 {[%clk 0:00:04]} 44. Rxa3 {[%clk 0:00:03.2]} 44... Qd2+
{[%clk 0:00:04.6]} 45. Kh3 {[%clk 0:00:02.5]} 45... Qd6 {[%clk 0:00:05.1]} 46.
Rd3 {[%clk 0:00:01.9]} 46... Qe6 {[%clk 0:00:05.3]} 47. Kg2 {[%clk 0:00:02.3]}
47... Kh7 {[%clk 0:00:05.1]} 48. Rc3 {[%clk 0:00:01.8]} 48... Qg6 {[%clk
0:00:05.1]} 49. c5 {[%clk 0:00:02.3]} 49... Rd8 {[%clk 0:00:05]} 50. g4 {[%clk
0:00:02.9]} 50... Rd2+ {[%clk 0:00:04.8]} 51. Kg3 {[%clk 0:00:02.8]} 51... Rb2
{[%clk 0:00:04.2]} 52. Rxe5 {[%clk 0:00:03.2]} 52... Ra2 {[%clk 0:00:02.9]} 53.
Qf5 {[%clk 0:00:03.8]} 53... Ra4 {[%clk 0:00:02.2]} 54. Qxg6+ {[%clk 0:00:04]}
54... Kxg6 {[%clk 0:00:03]} 55. Re6+ {[%clk 0:00:04.9]} 55... Kg5 {[%clk
0:00:03.6]} 56. Rxc6 {[%clk 0:00:05.8]} 56... g6 {[%clk 0:00:04.1]} 57. Rd6
{[%clk 0:00:06.4]} 57... h5 {[%clk 0:00:03.3]} 58. gxh5 {[%clk 0:00:07.3]} 58...
Rxe4 {[%clk 0:00:02.7]} 59. Rd5+ {[%clk 0:00:08.2]} 59... Kh6 {[%clk 0:00:03.2]}
60. hxg6 {[%clk 0:00:08.3]} 60... Re7 {[%clk 0:00:02.7]} 61. c6 {[%clk
0:00:08.7]} 61... Rg7 {[%clk 0:00:02.4]} 62. c7 {[%clk 0:00:08.6]} 62... Rg8
{[%clk 0:00:02.5]} 63. c8=Q {[%clk 0:00:07.9]} 63... Rg7 {[%clk 0:00:02.4]} 64.
Qh8+ {[%clk 0:00:07.5]} 64... Kxg6 {[%clk 0:00:02.1]} 65. Qh5+ {[%clk
0:00:06.4]} 65... Kf6+ {[%clk 0:00:02.2]} 66. Kf3 {[%clk 0:00:07.1]} 66... Ke7
{[%clk 0:00:01.4]} 67. Qe5+ {[%clk 0:00:07.2]} 67... Kf8 {[%clk 0:00:01.9]} 68.
Rc8+ {[%clk 0:00:07.4]} 68... Kf7 {[%clk 0:00:02.5]} 69. Rd7+ {[%clk 0:00:07.6]}
69... Kg6 {[%clk 0:00:02.3]} 70. Rxg7+ {[%clk 0:00:08.5]} 70... Kh6 {[%clk
0:00:02.5]} 71. Qg5# {[%clk 0:00:09.4]} 1-0

[Event "Late-Titled-Tuesday-Blitz-July-09-2024"]
[Site "Chess.com"]
[Date "2024.07.09"]
[Round "9"]
[White "ManMish2"]
[Black "OverallStranger"]
[Result "0-1"]
[WhiteElo "2598"]
[BlackElo "2434"]
[TimeControl "180+1"]
[EndTime "15:46:04 PDT"]
[Termination "OverallStranger won by checkmate"]

1. e4 {[%clk 0:03:00.9]} 1... c5 {[%clk 0:02:58.3]} 2. c3 {[%clk 0:02:58.9]}
2... Nf6 {[%clk 0:02:58.3]} 3. e5 {[%clk 0:02:57.8]} 3... Nd5 {[%clk 0:02:57.9]}
4. d4 {[%clk 0:02:58.2]} 4... cxd4 {[%clk 0:02:57.9]} 5. Nf3 {[%clk 0:02:58.6]}
5... d6 {[%clk 0:02:58.8]} 6. Bc4 {[%clk 0:02:58.7]} 6... Nb6 {[%clk 0:02:58.9]}
7. Bb3 {[%clk 0:02:58.8]} 7... Nc6 {[%clk 0:02:58.2]} 8. exd6 {[%clk 0:02:58.4]}
8... Qxd6 {[%clk 0:02:58.3]} 9. Nxd4 {[%clk 0:02:59]} 9... Nxd4 {[%clk
0:02:57.1]} 10. cxd4 {[%clk 0:02:59.9]} 10... Be6 {[%clk 0:02:56.5]} 11. O-O
{[%clk 0:03:00.4]} 11... Bxb3 {[%clk 0:02:56.3]} 12. Qxb3 {[%clk 0:03:00.2]}
12... e6 {[%clk 0:02:56.8]} 13. Nc3 {[%clk 0:03:00.4]} 13... Be7 {[%clk
0:02:54.4]} 14. Nb5 {[%clk 0:02:59.9]} 14... Qd7 {[%clk 0:02:54.6]} 15. Nxa7
{[%clk 0:03:00]} 15... Nd5 {[%clk 0:02:37.6]} 16. Nb5 {[%clk 0:02:59.3]} 16...
O-O {[%clk 0:02:38.3]} 17. Nc3 {[%clk 0:02:55.8]} 17... Bf6 {[%clk 0:02:24.3]}
18. Be3 {[%clk 0:02:54.7]} 18... Rfc8 {[%clk 0:02:19.7]} 19. Nxd5 {[%clk
0:02:43.4]} 19... Qxd5 {[%clk 0:02:07.4]} 20. Qxd5 {[%clk 0:02:42.6]} 20... exd5
{[%clk 0:02:08.3]} 21. Rfc1 {[%clk 0:02:42.3]} 21... g6 {[%clk 0:02:04.8]} 22.
a3 {[%clk 0:02:36.3]} 22... b5 {[%clk 0:02:01.6]} 23. Kf1 {[%clk 0:02:14.4]}
23... Rc4 {[%clk 0:01:57.1]} 24. Ke2 {[%clk 0:02:09.6]} 24... Rac8 {[%clk
0:01:56.9]} 25. Kd3 {[%clk 0:02:03.3]} 25... Kf8 {[%clk 0:01:50.4]} 26. b3
{[%clk 0:01:57.9]} 26... Rxc1 {[%clk 0:01:45.9]} 27. Rxc1 {[%clk 0:01:56.8]}
27... Ra8 {[%clk 0:01:43]} 28. Ra1 {[%clk 0:01:38.2]} 28... Be7 {[%clk
0:01:36.6]} 29. a4 {[%clk 0:01:37.7]} 29... Ra6 {[%clk 0:01:32.4]} 30. Bd2
{[%clk 0:01:31.3]} 30... bxa4 {[%clk 0:01:31]} 31. bxa4 {[%clk 0:01:27.2]} 31...
Bd8 {[%clk 0:01:24.8]} 32. Kc2 {[%clk 0:01:09.7]} 32... Rc6+ {[%clk 0:01:13.8]}
33. Kb3 {[%clk 0:01:06.9]} 33... Rb6+ {[%clk 0:01:04.7]} 34. Kc2 {[%clk
0:01:02.9]} 34... Rc6+ {[%clk 0:01:04.7]} 35. Kd3 {[%clk 0:01:03.2]} 35... Ra6
{[%clk 0:01:05.2]} 36. a5 {[%clk 0:00:59.4]} 36... Ke7 {[%clk 0:01:04.2]} 37.
Kc2 {[%clk 0:00:59]} 37... Kd6 {[%clk 0:01:01.9]} 38. Kb3 {[%clk 0:00:59]} 38...
Bf6 {[%clk 0:00:42.4]} 39. Bc3 {[%clk 0:00:54.9]} 39... h5 {[%clk 0:00:42.3]}
40. Ka4 {[%clk 0:00:48.9]} 40... Rc6 {[%clk 0:00:42.5]} 41. Bb4+ {[%clk
0:00:40.7]} 41... Kd7 {[%clk 0:00:41.7]} 42. Kb5 {[%clk 0:00:37.4]} 42... Bxd4
{[%clk 0:00:35.3]} 43. Rd1 {[%clk 0:00:36.8]} 43... Bxf2 {[%clk 0:00:35.8]} 44.
Rxd5+ {[%clk 0:00:36]} 44... Kc7 {[%clk 0:00:36.4]} 45. Bd2 {[%clk 0:00:17.5]}
45... Kb7 {[%clk 0:00:26.2]} 46. Bf4 {[%clk 0:00:16.1]} 46... Rf6 {[%clk
0:00:23.8]} 47. Be5 {[%clk 0:00:12.4]} 47... Rf5 {[%clk 0:00:23.1]} 48. a6+
{[%clk 0:00:11.4]} 48... Ka8 {[%clk 0:00:23.4]} 49. Kc6 {[%clk 0:00:10.6]} 49...
Ka7 {[%clk 0:00:23.9]} 50. Kb5 {[%clk 0:00:08.6]} 50... f6 {[%clk 0:00:17.9]}
51. Rd7+ {[%clk 0:00:08.5]} 51... Ka8 {[%clk 0:00:17.9]} 52. a7 {[%clk
0:00:07.9]} 52... Rxe5+ {[%clk 0:00:17.9]} 53. Ka6 {[%clk 0:00:07.3]} 53... Re6+
{[%clk 0:00:17.8]} 54. Kb5 {[%clk 0:00:07.9]} 54... Rb6+ {[%clk 0:00:18.1]} 55.
Ka5 {[%clk 0:00:07.6]} 55... Rb7 {[%clk 0:00:18.4]} 56. Rd6 {[%clk 0:00:07.7]}
56... Bh4 {[%clk 0:00:17.4]} 57. Ka6 {[%clk 0:00:05.4]} 57... Rxa7+ {[%clk
0:00:17.7]} 58. Kb6 {[%clk 0:00:06]} 58... Rb7+ {[%clk 0:00:18.2]} 59. Ka6
{[%clk 0:00:06.4]} 59... Bf2 {[%clk 0:00:17.6]} 60. Rd8+ {[%clk 0:00:06.2]}
60... Rb8 {[%clk 0:00:18]} 61. Rd6 {[%clk 0:00:06.6]} 61... f5 {[%clk
0:00:17.6]} 62. Rxg6 {[%clk 0:00:06.3]} 62... Rf8 {[%clk 0:00:15.7]} 63. h3
{[%clk 0:00:04.2]} 63... h4 {[%clk 0:00:15.9]} 64. Kb5 {[%clk 0:00:04.4]} 64...
Bg3 {[%clk 0:00:15.6]} 65. Kc4 {[%clk 0:00:04.5]} 65... f4 {[%clk 0:00:16.2]}
66. Kd5 {[%clk 0:00:04.9]} 66... f3 {[%clk 0:00:16.7]} 67. gxf3 {[%clk
0:00:05.2]} 67... Rxf3 {[%clk 0:00:17.6]} 68. Kc6 {[%clk 0:00:03.5]} 68... Rf2
{[%clk 0:00:18.1]} 69. Kb6 {[%clk 0:00:03.3]} 69... Rh2 {[%clk 0:00:17.9]} 70.
Rg8+ {[%clk 0:00:02.7]} 70... Bb8 {[%clk 0:00:18.1]} 71. Kc6 {[%clk 0:00:02.1]}
71... Rxh3 {[%clk 0:00:18.2]} 72. Kb6 {[%clk 0:00:02.5]} 72... Rb3+ {[%clk
0:00:18.3]} 73. Kc6 {[%clk 0:00:03]} 73... h3 {[%clk 0:00:18.1]} 74. Rg1 {[%clk
0:00:03.4]} 74... Ra3 {[%clk 0:00:17.9]} 75. Rh1 {[%clk 0:00:02.6]} 75... h2
{[%clk 0:00:18.2]} 76. Kb6 {[%clk 0:00:03]} 76... Ba7+ {[%clk 0:00:16.7]} 77.
Kc6 {[%clk 0:00:03.1]} 77... Bg1 {[%clk 0:00:17.4]} 78. Kc7 {[%clk 0:00:03.2]}
78... Ka7 {[%clk 0:00:17.8]} 79. Kc6 {[%clk 0:00:03.6]} 79... Rc3+ {[%clk
0:00:18.3]} 80. Kd5 {[%clk 0:00:03.6]} 80... Kb6 {[%clk 0:00:19.2]} 81. Ke4
{[%clk 0:00:04.1]} 81... Rc5 {[%clk 0:00:19.2]} 82. Kf3 {[%clk 0:00:03.7]} 82...
Kc6 {[%clk 0:00:19.9]} 83. Kg2 {[%clk 0:00:03.5]} 83... Kd5 {[%clk 0:00:20.6]}
84. Kf3 {[%clk 0:00:03.6]} 84... Rc3+ {[%clk 0:00:20.7]} 85. Kf4 {[%clk
0:00:04.2]} 85... Rc4+ {[%clk 0:00:20.6]} 86. Kf3 {[%clk 0:00:04.6]} 86... Ke5
{[%clk 0:00:20.9]} 87. Kg3 {[%clk 0:00:04]} 87... Kf5 {[%clk 0:00:21]} 88. Kf3
{[%clk 0:00:04.4]} 88... Rc3+ {[%clk 0:00:21]} 89. Kg2 {[%clk 0:00:04]} 89...
Kg4 {[%clk 0:00:21.5]} 90. Rxh2 {[%clk 0:00:01.4]} 90... Bxh2 {[%clk 0:00:21.2]}
91. Kh1 {[%clk 0:00:02.3]} 91... Bb8 {[%clk 0:00:18.6]} 92. Kg2 {[%clk
0:00:02.9]} 92... Rc2+ {[%clk 0:00:18.6]} 93. Kf1 {[%clk 0:00:03.8]} 93... Kf3
{[%clk 0:00:18.9]} 94. Ke1 {[%clk 0:00:04.7]} 94... Bf4 {[%clk 0:00:18.8]} 95.
Kd1 {[%clk 0:00:05]} 95... Rc1# {[%clk 0:00:19.7]} 0-1

[Event "Late-Titled-Tuesday-Blitz-July-09-2024"]
[Site "Chess.com"]
[Date "2024.07.09"]
[Round "10"]
[White "klercaku"]
[Black "MaxLeto"]
[Result "0-1"]
[WhiteElo "2375"]
[BlackElo "2471"]
[TimeControl "180+1"]
[EndTime "15:49:13 PDT"]
[Termination "MaxLeto won by resignation"]

1. e4 {[%clk 0:03:00.9]} 1... c5 {[%clk 0:02:59.3]} 2. Nf3 {[%clk 0:03:01.1]}
2... d6 {[%clk 0:02:59.8]} 3. d4 {[%clk 0:03:01.6]} 3... cxd4 {[%clk 0:03:00.7]}
4. Nxd4 {[%clk 0:03:01.9]} 4... Nf6 {[%clk 0:03:01.4]} 5. Nc3 {[%clk 0:03:02.4]}
5... a6 {[%clk 0:03:01.9]} 6. Be2 {[%clk 0:03:02.7]} 6... e6 {[%clk 0:03:02.2]}
7. Be3 {[%clk 0:03:02.3]} 7... Be7 {[%clk 0:03:02.5]} 8. h3 {[%clk 0:03:02.5]}
8... O-O {[%clk 0:03:03]} 9. O-O {[%clk 0:03:03]} 9... Qc7 {[%clk 0:03:03.6]}
10. Qd2 {[%clk 0:03:03.1]} 10... b5 {[%clk 0:03:04.1]} 11. a3 {[%clk 0:03:03.4]}
11... Bb7 {[%clk 0:03:04.6]} 12. Bd3 {[%clk 0:03:01]} 12... Nbd7 {[%clk
0:03:04.7]} 13. f4 {[%clk 0:03:00.4]} 13... Nc5 {[%clk 0:03:05.1]} 14. e5 {[%clk
0:02:33.1]} 14... dxe5 {[%clk 0:03:06]} 15. fxe5 {[%clk 0:02:33.4]} 15... Qxe5
{[%clk 0:03:06.9]} 16. Nf3 {[%clk 0:02:26.9]} 16... Bxf3 {[%clk 0:02:58.6]} 17.
Rxf3 {[%clk 0:02:23.9]} 17... Nxd3 {[%clk 0:02:57.2]} 18. Qxd3 {[%clk
0:02:21.5]} 18... Rad8 {[%clk 0:02:50]} 19. Qf1 {[%clk 0:02:15.4]} 19... Bc5
{[%clk 0:02:49.7]} 20. Re1 {[%clk 0:02:12.6]} 20... Bxe3+ {[%clk 0:02:48]} 21.
Rexe3 {[%clk 0:02:12]} 21... Qc5 {[%clk 0:02:48.4]} 22. Kh2 {[%clk 0:02:09.3]}
22... Nd5 {[%clk 0:02:48.2]} 23. Re5 {[%clk 0:02:01.8]} 23... Qc7 {[%clk
0:02:43.6]} 24. Qe2 {[%clk 0:01:56.9]} 24... f6 {[%clk 0:02:41.5]} 25. Nxd5
{[%clk 0:01:56.1]} 25... Rxd5 {[%clk 0:02:42.4]} 26. Re3 {[%clk 0:01:51.3]}
26... Rxe5 {[%clk 0:02:41.7]} 27. Rxe5 {[%clk 0:01:51.9]} 27... Qxe5+ {[%clk
0:02:42.3]} 0-1

[Event "Late-Titled-Tuesday-Blitz-July-09-2024"]
[Site "Chess.com"]
[Date "2024.07.09"]
[Round "10"]
[White "tandercat"]
[Black "simaopdias"]
[Result "0-1"]
[WhiteElo "1915"]
[BlackElo "2181"]
[TimeControl "180+1"]
[EndTime "15:49:25 PDT"]
[Termination "simaopdias won by resignation"]

1. d4 {[%clk 0:03:00.9]} 1... Nf6 {[%clk 0:02:59]} 2. c4 {[%clk 0:03:00.4]} 2...
e6 {[%clk 0:02:56.1]} 3. Nc3 {[%clk 0:03:00.3]} 3... b6 {[%clk 0:02:54]} 4. e4
{[%clk 0:02:47.7]} 4... Bb4 {[%clk 0:02:52.7]} 5. f3 {[%clk 0:02:47.2]} 5... d6
{[%clk 0:02:50.4]} 6. a3 {[%clk 0:02:44.2]} 6... Bxc3+ {[%clk 0:02:50.1]} 7.
bxc3 {[%clk 0:02:44.6]} 7... O-O {[%clk 0:02:48.1]} 8. Bd3 {[%clk 0:02:44.5]}
8... Ba6 {[%clk 0:02:47.6]} 9. Ne2 {[%clk 0:02:43.3]} 9... c5 {[%clk 0:02:46.9]}
10. O-O {[%clk 0:02:42.3]} 10... Nc6 {[%clk 0:02:44.7]} 11. Bg5 {[%clk
0:02:37.4]} 11... h6 {[%clk 0:02:44.1]} 12. Bh4 {[%clk 0:02:35.5]} 12... e5
{[%clk 0:02:44.2]} 13. d5 {[%clk 0:01:29.5]} 13... Na5 {[%clk 0:02:42.9]} 14.
Qa4 {[%clk 0:01:29.2]} 14... Qd7 {[%clk 0:02:38.3]} 15. Bxf6 {[%clk 0:01:28]}
15... Qxa4 {[%clk 0:02:38.1]} 16. Ng3 {[%clk 0:01:28.9]} 16... gxf6 {[%clk
0:02:33.2]} 0-1

[Event "Late-Titled-Tuesday-Blitz-July-09-2024"]
[Site "Chess.com"]
[Date "2024.07.09"]
[Round "10"]
[White "Vaporwaffle94"]
[Black "Boorchess"]
[Result "1-0"]
[WhiteElo "2300"]
[BlackElo "2489"]
[TimeControl "180+1"]
[EndTime "15:49:50 PDT"]
[Termination "Vaporwaffle94 won by checkmate"]

1. e4 {[%clk 0:02:56.3]} 1... c5 {[%clk 0:02:59.4]} 2. Nf3 {[%clk 0:02:56.1]}
2... d6 {[%clk 0:02:59.6]} 3. g3 {[%clk 0:02:55.1]} 3... Nf6 {[%clk 0:02:57.6]}
4. Nc3 {[%clk 0:02:52.5]} 4... e5 {[%clk 0:02:55.7]} 5. Bg2 {[%clk 0:02:52.2]}
5... g6 {[%clk 0:02:54.4]} 6. O-O {[%clk 0:02:53.1]} 6... Bg7 {[%clk 0:02:54.8]}
7. d3 {[%clk 0:02:51.5]} 7... O-O {[%clk 0:02:54.8]} 8. Ne1 {[%clk 0:02:51.7]}
8... Nc6 {[%clk 0:02:53.1]} 9. f4 {[%clk 0:02:51.9]} 9... Nd4 {[%clk 0:02:44.8]}
10. f5 {[%clk 0:02:51.8]} 10... b5 {[%clk 0:02:40]} 11. g4 {[%clk 0:02:50.5]}
11... b4 {[%clk 0:02:36.6]} 12. Nd5 {[%clk 0:02:49.7]} 12... Nxd5 {[%clk
0:02:35.8]} 13. exd5 {[%clk 0:02:50.6]} 13... Qh4 {[%clk 0:02:28.2]} 14. c3
{[%clk 0:02:50]} 14... bxc3 {[%clk 0:02:25.2]} 15. bxc3 {[%clk 0:02:50.9]} 15...
Nb5 {[%clk 0:02:23.9]} 16. Bd2 {[%clk 0:02:49.7]} 16... Bh6 {[%clk 0:02:18]} 17.
g5 {[%clk 0:02:49.2]} 17... Bg7 {[%clk 0:02:09.2]} 18. a4 {[%clk 0:02:47.9]}
18... Nc7 {[%clk 0:02:08.3]} 19. f6 {[%clk 0:02:47.1]} 19... Bh8 {[%clk
0:02:08]} 20. a5 {[%clk 0:02:46.9]} 20... h6 {[%clk 0:02:04.2]} 21. Ra4 {[%clk
0:02:45.8]} 21... Qh5 {[%clk 0:01:55]} 22. Qxh5 {[%clk 0:02:40.8]} 22... gxh5
{[%clk 0:01:54.9]} 23. gxh6 {[%clk 0:02:41.7]} 23... Ne8 {[%clk 0:01:48.2]} 24.
Bg5 {[%clk 0:02:39.8]} 24... Rb8 {[%clk 0:01:41.8]} 25. Rh4 {[%clk 0:02:33.3]}
25... Nc7 {[%clk 0:01:34.1]} 26. Rxh5 {[%clk 0:02:32.6]} 26... Rb5 {[%clk
0:01:22.4]} 27. h7# {[%clk 0:02:32.3]} 1-0

[Event "Late-Titled-Tuesday-Blitz-July-09-2024"]
[Site "Chess.com"]
[Date "2024.07.09"]
[Round "10"]
[White "IMVadim"]
[Black "zsoltkorpics"]
[Result "0-1"]
[WhiteElo "2410"]
[BlackElo "2491"]
[TimeControl "180+1"]
[EndTime "15:50:14 PDT"]
[Termination "zsoltkorpics won by resignation"]

1. e4 {[%clk 0:02:37]} 1... c5 {[%clk 0:02:59.4]} 2. Nf3 {[%clk 0:02:36.2]} 2...
e6 {[%clk 0:03:00]} 3. c3 {[%clk 0:02:34.8]} 3... Nf6 {[%clk 0:02:59]} 4. Bd3
{[%clk 0:02:32.1]} 4... d6 {[%clk 0:02:49.8]} 5. O-O {[%clk 0:02:24.2]} 5... Nc6
{[%clk 0:02:44.4]} 6. Bc2 {[%clk 0:02:23.4]} 6... Be7 {[%clk 0:02:43.5]} 7. d4
{[%clk 0:02:22.1]} 7... cxd4 {[%clk 0:02:42.8]} 8. cxd4 {[%clk 0:02:23]} 8... e5
{[%clk 0:02:17.5]} 9. Nc3 {[%clk 0:02:17.3]} 9... O-O {[%clk 0:02:16]} 10. Bg5
{[%clk 0:02:11.2]} 10... Bg4 {[%clk 0:02:13.6]} 11. dxe5 {[%clk 0:02:08.4]}
11... Nxe5 {[%clk 0:02:10.4]} 12. Bxf6 {[%clk 0:01:56.7]} 12... Bxf6 {[%clk
0:02:09.9]} 13. Nd5 {[%clk 0:01:57.6]} 13... Nxf3+ {[%clk 0:02:03.5]} 14. gxf3
{[%clk 0:01:56.7]} 14... Bh3 {[%clk 0:02:04]} 15. Re1 {[%clk 0:01:55.1]} 15...
Bxb2 {[%clk 0:02:03.4]} 16. Qd2 {[%clk 0:01:53.5]} 16... Bxa1 {[%clk 0:01:48.3]}
17. Rxa1 {[%clk 0:01:54.4]} 17... f5 {[%clk 0:01:34.8]} 18. Nf4 {[%clk
0:01:49.6]} 18... Qg5+ {[%clk 0:01:31.3]} 19. Kh1 {[%clk 0:01:48]} 19... Bg2+
{[%clk 0:01:32]} 0-1

[Event "Late-Titled-Tuesday-Blitz-July-09-2024"]
[Site "Chess.com"]
[Date "2024.07.09"]
[Round "10"]
[White "anderson2361"]
[Black "Kyrko_Gamba"]
[Result "1-0"]
[WhiteElo "2304"]
[BlackElo "2482"]
[TimeControl "180+1"]
[EndTime "15:50:57 PDT"]
[Termination "anderson2361 won by checkmate"]

1. c4 {[%clk 0:02:55.3]} 1... a6 {[%clk 0:03:00.9]} 2. e3 {[%clk 0:02:51.9]}
2... c6 {[%clk 0:03:00.9]} 3. Nf3 {[%clk 0:02:50.6]} 3... e6 {[%clk 0:03:00.1]}
4. b3 {[%clk 0:02:51.1]} 4... d5 {[%clk 0:03:00.1]} 5. Bb2 {[%clk 0:02:51.5]}
5... b5 {[%clk 0:02:59.8]} 6. Be2 {[%clk 0:02:50.2]} 6... Nf6 {[%clk 0:02:59.1]}
7. O-O {[%clk 0:02:50.7]} 7... Be7 {[%clk 0:02:59.6]} 8. Nc3 {[%clk 0:02:49.5]}
8... Nbd7 {[%clk 0:02:58.7]} 9. d3 {[%clk 0:02:48.8]} 9... Bb7 {[%clk
0:02:58.4]} 10. e4 {[%clk 0:02:49]} 10... O-O {[%clk 0:02:57.1]} 11. e5 {[%clk
0:02:48.1]} 11... Ne8 {[%clk 0:02:56.6]} 12. d4 {[%clk 0:02:44.9]} 12... dxc4
{[%clk 0:02:50.3]} 13. bxc4 {[%clk 0:02:44.7]} 13... b4 {[%clk 0:02:48]} 14. Na4
{[%clk 0:02:44.2]} 14... c5 {[%clk 0:02:46]} 15. d5 {[%clk 0:02:43.4]} 15... a5
{[%clk 0:02:25.2]} 16. Qd2 {[%clk 0:02:30.9]} 16... h6 {[%clk 0:02:22.8]} 17.
Rfd1 {[%clk 0:02:23.7]} 17... Nb8 {[%clk 0:02:18.3]} 18. d6 {[%clk 0:02:21.3]}
18... Bg5 {[%clk 0:02:16.7]} 19. Nxg5 {[%clk 0:02:21.6]} 19... hxg5 {[%clk
0:02:07.6]} 20. Nxc5 {[%clk 0:02:21.8]} 20... Bc6 {[%clk 0:02:05.8]} 21. a3
{[%clk 0:02:17.2]} 21... Nd7 {[%clk 0:02:04.7]} 22. Nxd7 {[%clk 0:02:13.8]}
22... Qxd7 {[%clk 0:02:05.6]} 23. axb4 {[%clk 0:02:13.8]} 23... axb4 {[%clk
0:02:05]} 24. Rxa8 {[%clk 0:02:12.9]} 24... Bxa8 {[%clk 0:02:04.4]} 25. Qxb4
{[%clk 0:02:13.6]} 25... f5 {[%clk 0:02:02.4]} 26. c5 {[%clk 0:02:05.6]} 26...
Bc6 {[%clk 0:02:00.6]} 27. Bc4 {[%clk 0:02:02.8]} 27... f4 {[%clk 0:02:00.1]}
28. Qb3 {[%clk 0:01:58.1]} 28... Kh8 {[%clk 0:01:52.4]} 29. Bxe6 {[%clk
0:01:56.5]} 29... Qd8 {[%clk 0:01:51.4]} 30. Bd5 {[%clk 0:01:54.4]} 30... Bxd5
{[%clk 0:01:46.6]} 31. Qxd5 {[%clk 0:01:55.3]} 31... f3 {[%clk 0:01:46]} 32. e6
{[%clk 0:01:53.8]} 32... Qb8 {[%clk 0:01:33.9]} 33. e7 {[%clk 0:01:51.7]} 33...
Rf4 {[%clk 0:01:32.6]} 34. d7 {[%clk 0:01:46.7]} 34... fxg2 {[%clk 0:01:28.6]}
35. dxe8=Q+ {[%clk 0:01:44.3]} 35... Qxe8 {[%clk 0:01:29.5]} 36. Qxg5 {[%clk
0:01:43.4]} 36... Kh7 {[%clk 0:01:30.4]} 37. Qxg7# {[%clk 0:01:42.7]} 1-0